Workbook

Sheet S1_Volume_Official_Homework
C3: Name :
C6: Teacher :
B9: S1 Official Homework Volume Created by Mr Lafferty St. Ninian's High School
D11: This homework covers topics | AC11: Score
D13: Basic Skills | R13: Harder Volume | AF13: 26
D15: Volume | R15: Working backwards
D17: Basic Volume | R17: Composite Volume
D21: Teacher Comments :
D29: Pupil's Comment :
C37: Q1. | D37: Carry out the following instructions. | P37: ( NON - CALCULATOR QUESTION )
B39: (a) | D39: =ROUND(RAND()*(950-730)+730,1) -> 776.4 | G39: - | H39: =ROUND(RAND()*(550-330)+330,1) -> 528.4 | L39: Working : | AJ39: =D39-H39 -> 248
B43: (b) | D43: =ROUND(RAND()*(250-15)+15,1) -> 133.7 | G43: x | H43: =ROUND(RAND()*(9-3)+3,0)*10 -> 30 | L43: Working : | AJ43: =D43*H43 -> 4011
B47: (c) | D47: =ROUND(RAND()*(98-32)+32,1)*H47 -> 482.3 | G47: ÷ | H47: =ROUND(RAND()*(9-4)+4,0) -> 7 | L47: Working : | AJ47: =D47/H47 -> 68.9
B51: (d) | D51: =AJ53 -> 15% | F51: of | G51: =AN51 -> 390 | L51: Working : | AJ51: =AJ52/100*AN51 -> 58.5 | AN51: =ROUND(RAND()*(99-22)+22,0)*10 -> 390
AJ52: =ROUND(RAND()*(7-3)+3,0)*5 -> 15 | AK52: %
AJ53: =CONCATENATE(AJ52,AK52) -> 15%
AC54: ( 5 marks )
C57: Q2. Write a sentence to describe volume.
AC62: ( 2 marks )
C64: Q3. Calculate the volume for each shape. | AJ64: =ROUND(RAND()*(9-3)+3,0)*10 -> 70 | AL64: =ROUND(RAND()*(10-3)+3,0) -> 6
AJ65: =ROUND(RAND()*(9-5)+5,0) -> 8 | AL65: =CONCATENATE(AL64,"m") -> 6m
C66: (a) | Q66: (b) | X66: Cube | AJ66: =ROUND(RAND()*(5-2)+2,1) -> 3.3
D67: =AJ66 -> 3.3 | F67: cm
N68: =AJ65 -> 8 | O68: cm
I69: =AJ64 -> 70 | J69: cm | U69: =AL65 -> 6m
AC70: ( 6 marks )
D71: Volume = | J71: cm3 | S71: Volume = | Y71: m3 | AJ71: =AJ64*AJ65*AJ66 -> 1848 | AL71: =AL64*AL64*AL64 -> 216
C82: ="Q4. A cuboid shaped tropical fish tank is filled with water. " -> Q4. A cuboid shaped tropical fish tank is filled with water. | AJ82: =ROUND(RAND()*(12-8)+8,0)*10 -> 100
Q83: =AJ85 -> 30 | S83: cm
E84: Calculate the volume of water in the tank. | AJ84: =ROUND(0.8*AJ82,-1) -> 80
AB85: =AJ84 -> 80 | AD85: cm | AJ85: =ROUND(0.4*AJ84,-1) -> 30 | AO85: =ROUND(RAND()*(1-0)+0,0) -> 1
AJ86: =AJ82 -> 100 | AO86: =IF(AO85=0,AM86+AL83,AM86-AL83) -> 0
AJ87: =ROUND(AJ82*0.2,0) -> 20 | AO87: =AL84*AO86 -> 0
J88: cm3 | R88: =AJ87 -> 20 | T88: cm | AJ88: =AJ84-AJ85 -> 50 | AO88: =AL86*AO86 -> 0
X89: =AJ82 -> 100 | Z89: cm | AC89: ( 3 marks ) | AJ89: =AJ86*AJ87*AJ88 -> 100000
C100: ="Q5. A packet of cereal is cuboid in shape. The volume of the packet is "&AJ105&" cubic centimetres." -> Q5. A packet of cereal is cuboid in shape. The volume of the packet is 2856 cubic centimetres.
AJ101: =ROUND(RAND()*(20-12)+12,0) -> 14 | AK101: l
D102: ="The length is "&AJ101&"cm and the breadth is "&AJ102&"cm." -> The length is 14cm and the breadth is 6cm. | AB102: ( 3 marks ) | AJ102: =ROUND(RAND()*(10-6)+6,0) -> 6 | AK102: b
AJ103: =ROUND(RAND()*(50-30)+30,0) -> 34 | AK103: h
D104: Calculate the height of the packet. | AC104: cm
AJ105: =AJ101*AJ102*AJ103 -> 2856
C118: ="Q6. Calculate the volume of this composite shape." -> Q6. Calculate the volume of this composite shape.
AM119: =ROUND(RAND()*(3-1)+1,0) -> 3
D120: =AJ122 -> 6 | F120: cm | AJ120: =ROUND(RAND()*(20-14)+12,0) -> 15 | AK120: =ROUND(RAND()*(3-1)+1,0) -> 3
AJ121: =AJ120-AK120 -> 12 | AK121: =ROUND(RAND()*(3-1)+1,0) -> 3
K122: =AJ121 -> 12 | L122: cm | AJ122: =ROUND(AJ121/2,0) -> 6
AJ123: =AJ121-AK121 -> 9 | AK123: =ROUND(RAND()*(3-1)+1,0) -> 1
L124: =AJ124 -> 8 | M124: cm | AJ124: =AJ123-AK123 -> 8
D125: =AJ120 -> 15 | F125: cm | AJ125: =AJ123-AJ124 -> 1
AJ126: =AJ120-AJ121 -> 3
AJ127: =AJ121*AJ125*AJ122 -> 72
AJ128: =AJ123*AJ122*AJ126 -> 162
I129: =AJ123 -> 9 | J129: cm
V130: cm3 | AB130: ( 7 marks ) | AJ130: =AJ127+AJ128 -> 234
AB134: Total marks 26
